Cogmind - Beta 13 @@@ ROGUE MODE // 2024.05.08 @ 23:34:56 Player: orthostice Result: Destroyed by G-34 Mercenary with Small Laser Performance ------------- Evolutions (0) 0 Regions Visited (4) 800 Robots Destroyed (30) 150 Value Destroyed (838) 838 Prototype IDs (0) 0 Alien Tech Used (0) 0 Bonus (0) 0 TOTAL SCORE: 1788 Bonus ------- None Cogmind --------- Core Integrity 0/250 Matter 175/300 Energy 246/250 System Corruption 1% Temperature Cool (59) Movement Core (550) Ox10 Location -9/Mines Parts ------- > --- POWER (1) -------- Ion Engine > --- PROPULSION (2) --- (None) > --- UTILITY (2) ------ Large Storage Unit Transport Network Coupler > --- WEAPON (2) ------- Improved Light Cannon Improved Light Cannon > --- INVENTORY (15) --- Light Nuclear Core Medium Storage Unit Sensor Array Signal Interpreter Core Shielding Hacking Suite Improved Light Cannon Improved Light Cannon Grenade Launcher Mining Claw Peak State ------------ > --- POWER ------------ Ion Engine > --- PROPULSION ------- Light Treads Light Treads > --- UTILITY ---------- Small Storage Unit Transport Network Coupler > --- WEAPON ----------- Improved Light Cannon Improved Light Cannon > --- INVENTORY -------- Ion Engine Light Nuclear Core Light Treads Improved Heat Sink Signal Interpreter Core Shielding [Rating: 10] Favorites ----------- Power Ion Engine Engine Ion Engine Propulsion Light Treads Treads Light Treads Utility Transport Network Coupler Storage Large Storage Unit Processor Transport Network Coupler Protection Core Shielding Weapon Improved Light Cannon Energy Gun Medium Laser Ballistic Gun Assault Rifle Ballistic Cannon Improved Light Cannon Launcher Grenade Launcher Slashing Weapon Mining Claw Build | -11 -10 -10 -10 -9 ------- Run | Yrd Mat Min Exi Min Slots Evolved . | . . . . . Power . | . . . . . Propulsion . | . . . . . Utility . | . . . . . Weapon . | . . . . . Parts Attached 20 | 6 8 3 1 2 Power 2 | 1 1 . . . Engine 2 | 1 1 . . . Core . | . . . . . Reactor . | . . . . . Propulsion 3 | 2 . 1 . . Treads 3 | 2 . 1 . . Leg . | . . . . . Wheel . | . . . . . Hover . | . . . . . Flight . | . . . . . Utility 5 | 1 4 . . . Device . | . . . . . Storage 3 | 1 2 . . . Processor 1 | . 1 . . . Hackware . | . . . . . Protection 1 | . 1 . . . Artifact . | . . . . . Weapon 10 | 2 3 2 1 2 Energy Gun 2 | 1 1 . . . Energy Cannon . | . . . . . Ballistic Gun 1 | 1 . . . . Ballistic Cannon 4 | . 2 1 . 1 Launcher 2 | . . 1 . 1 Special Weapon . | . . . . . Impact Weapon . | . . . . . Slashing Weapon 1 | . . . 1 . Piercing Weapon . | . . . . . Special Melee Weapon . | . . . . . Unidentified Prototypes . | . . . . . Parts Lost 5 | . 2 1 2 . Power 1 | . 1 . . . Propulsion 3 | . . 1 2 . Utility . | . . . . . Weapon 1 | . 1 . . . Highest Loss Streak 2 | . 1 1 2 . To Critical Strikes . | . . . . . Average Slot Usage (%) 87 | . 98 100 78 71 Engine 13 | . 13 14 14 14 Treads 16 | . 28 28 7 . Storage 14 | . 14 14 14 14 Processor 12 | . 10 14 14 14 Energy Gun 1 | . 5 . . . Ballistic Gun 1 | . 5 . . . Ballistic Cannon 17 | . 17 22 17 15 Slashing Weapon 6 | . . . 10 10 Naked Turns . | . . . . . Heaviest Build 33 | 14 33 33 33 31 Greatest Support 40 | 40 40 40 40 3 Greatest Overweight (x) 10 | . . . 10 10 Average Overweight (x) 1 | . . . 4 10 Largest Inventory Capacity 15 | 8 15 15 15 15 Average Capacity 13 | 6 11 15 15 15 Most Carried 11 | 5 11 11 10 10 Average Carried 9 | 2 8 10 10 10 Final Capacity 15 | 8 15 15 15 15 Final Carried 11 | 4 11 10 10 10 Class Distribution -------------------- 100% | Mutant Dominant Class ---------------- Mutant | -10/Materials Mutant | -10/Mines Mutant | -10/Exiles Mutant | -9/Mines Resources | -11 -10 -10 -10 -9 ----------- Run | Yrd Mat Min Exi Min Matter Collected 682 | 256 338 88 . . Remotely . | . . . . . Salvage Created 737 | . 608 75 . 54 Parts 53 | . 41 7 . 5 Haulers Intercepted 2 | . 2 . . . Recyclers Shooed . | . . . . . Parts Field Recycled . | . . . . . Retrieved Matter . | . . . . . Parts Self-Destructed . | . . . . . Prevented . | . . . . . Kills | -11 -10 -10 -10 -9 ------- Run | Yrd Mat Min Exi Min Combat Hostiles Destroyed 21 | . 13 5 . 3 Guns 7 | . 7 . . . Cannons 9 | . 6 2 . 1 AOE 5 | . . 3 . 2 Classes Destroyed 6 | . 5 1 . . Worker 1 | . 1 . . . Hauler 2 | . 2 . . . Operator 3 | . 3 . . . Watcher 3 | . 3 . . . Swarmer 3 | . . 3 . . Grunt 18 | . 13 2 . 3 Best Kill Streak 3 | . 3 3 . 3 Combat Bots Only 3 | . 2 3 . 3 Max Kills in Single Turn 3 | . 1 3 . 2 Gunslinging . | . . . . . Exploded 3 | . . 3 . 1 Melee . | . . . . . Uniques/NPCs Destroyed . | . . . . . Combat | -11 -10 -10 -10 -9 -------- Run | Yrd Mat Min Exi Min Hostile Shots Fired 73 | . 59 4 . 10 Missed 14 | . 12 . . 2 Damage Taken 1094 | . 819 58 114 103 Core 252 | . 202 . . 50 Absorbed by Shields . | . . . . . Redirected to Shielding 2 | . 2 . . . Core Remaining (%) 100 | 100 . . . . Volleys Fired 66 | . 55 5 1 5 Largest 2 | . 2 2 2 2 Hottest 78 | . 78 78 78 78 Shots Fired 131 | . 110 9 2 10 Gun 62 | . 62 . . . Cannon 64 | . 48 8 2 6 Launcher 5 | . . 1 . 4 Special . | . . . . . Kinetic 95 | . 79 8 2 6 Thermal 20 | . 20 . . . Explosive 5 | . . 1 . 4 Electromagnetic 11 | . 11 . . . Robot Hit Streak 17 | . 17 6 . 2 Robot Miss Streak 2 | . 2 1 . 2 Penetration Max . | . . . . . Secondary Targets . | . . . . . Shots Hit Robots 93 | . 83 6 . 4 Core Hits 44 | . 30 6 . 8 Critical Kills 2 | . 2 . . . Critical Parts Destroyed . | . . . . . Critical Strikes 6 | . 6 . . . Burn 3 | . 3 . . . Destroy 2 | . 2 . . . Blast 1 | . 1 . . . Melee Attacks 35 | . . . 34 1 Impact . | . . . . . Slashing 35 | . . . 34 1 Piercing . | . . . . . Sneak Attacks 1 | . . . . 1 Combat Hostiles . | . . . . . Follow-up Attacks . | . . . . . Damage Inflicted 2118 | . 1412 271 . 435 Guns 571 | . 571 . . . Cannons 976 | . 782 152 . 42 Explosions 513 | . 45 119 . 349 Melee 44 | . . . . 44 Ramming 14 | . 14 . . . Kinetic 1258 | . 1064 152 . 42 Thermal 243 | . 243 . . . Explosive 468 | . . 119 . 349 Electromagnetic 91 | . 91 . . . Impact . | . . . . . Slashing 44 | . . . . 44 Piercing . | . . . . . Highest Corruption 1 | . 1 1 1 1 Average Corruption 1 | . 1 1 1 1 Corruption Purged . | . . . . . Corruption Blocked . | . . . . . Effects 22 | . 3 2 16 1 Message Errors 8 | . 2 . 6 . Matter Fused 5 | . . 2 3 . Heat Flow Errors 3 | . . . 2 1 Energy Discharges 2 | . . . 2 . Data Loss (minor) 3 | . 1 . 2 . Data Loss (major) 1 | . . . 1 . Overload Shots . | . . . . . Overflow Damage 137 | . 99 17 7 14 Projectiles 22 | . 22 . . . Explosions 101 | . 77 17 7 . Melee 14 | . . . . 14 Knockbacks 12 | . 7 5 . . Impact . | . . . . . Kinetic 10 | . 7 3 . . Secondary 2 | . . 2 . . Self-Inflicted Damage 330 | . 216 . 114 . Shots 4 | . 3 . 1 . Rammed 4 | . 4 . . . Targets Rammed 5 | . 5 . . . Kicked . | . . . . . Crushed 1 | . 1 . . . Highest Temperature 255 | . 183 114 255 195 Average Temperature 54 | . 46 55 99 69 Received Heat Transfer 483 | . 378 48 . 57 Siege Activations . | . . . . . Robots Corrupted . | . . . . . Combat Hostiles . | . . . . . Parts Fried . | . . . . . Impact Corruptions . | . . . . . Robots Melted . | . . . . . Combat Hostiles . | . . . . . Parts Melted 1 | . 1 . . . Heat Transferred 914 | . 914 . . . Parts Sabotaged . | . . . . . Parts Stolen . | . . . . . Parts Stripped . | . . . . . Power Chain Reactions 1 | . 1 . . . Alert | -11 -10 -10 -10 -9 ------- Run | Yrd Mat Min Exi Min Peak Influence 209 | . 209 160 . 93 Initial 27 | . . 27 . . Average 87 | . 83 143 . 10 Maximum Alert Level 1 | . 1 . . . Low Security (%) 97 | 100 97 100 . 100 Level 1 2 | . 2 . . . Level 2 . | . . . . . Level 3 . | . . . . . Level 4 . | . . . . . Level 5 . | . . . . . High Security . | . . . . . Max Security . | . . . . . Squads Dispatched 4 | . 4 . . . Investigation 1 | . 1 . . . Extermination . | . . . . . Reinforcement 3 | . 3 . . . Assault . | . . . . . Garrison . | . . . . . Intercept . | . . . . . Searches Triggered . | . . . . . Construction Impeded . | . . . . . Haulers Reinforced . | . . . . . Active Scanning Responses . | . . . . . Cargo Convoy Interrupts . | . . . . . Stealth | -11 -10 -10 -10 -9 --------- Run | Yrd Mat Min Exi Min Distress Signals 1 | . 1 . . . Communications Jammed . | . . . . . Distress Signals . | . . . . . Times Spotted 27 | . 20 2 . 5 Peak Tracking Total 5 | . 3 2 . 5 Tactical Retreats . | . . . . . Traps | -11 -10 -10 -10 -9 ------- Run | Yrd Mat Min Exi Min Traps Triggered . | . . . . . Indirectly . | . . . . . Trap Hack Attempts . | . . . . . Triggered . | . . . . . Disarmed . | . . . . . Reprogrammed . | . . . . . Reused . | . . . . . Traps Extracted . | . . . . . Installed . | . . . . . Triggered . | . . . . . Machines | -11 -10 -10 -10 -9 ---------- Run | Yrd Mat Min Exi Min Machines Disabled 4 | . 2 1 1 . Max in Single Turn 2 | . 2 1 1 . Machines Repaired . | . . . . . Machines Dismantled . | . . . . . Machines Sabotaged . | . . . . . Overloaded Fab Kills . | . . . . . Hacking | -11 -10 -10 -10 -9 --------- Run | Yrd Mat Min Exi Min Machines Accessed 7 | . 3 . 4 . Terminals 3 | . 3 . . . Fabricators . | . . . . . Repair Stations . | . . . . . Recycling Units . | . . . . . Scanalyzers . | . . . . . Garrison Access . | . . . . . Total Hacks 10 | . 6 . 4 . Successful 5 | . 1 . 4 . Failed 5 | . 5 . . . Catastrophic 1 | . 1 . . . Database Lockouts . | . . . . . Manual 7 | . 6 . 1 . Terminals 6 | . 6 . . . Fabricators . | . . . . . Repair Stations . | . . . . . Recycling Units . | . . . . . Scanalyzers . | . . . . . Garrison Access . | . . . . . Terminal Hacks 5 | . 1 . 4 . Record 4 | . . . 4 . Terminal Index 1 | . 1 . . . Fabricator Hacks . | . . . . . Repair Station Hacks . | . . . . . Recycling Unit Hacks . | . . . . . Scanalyzer . | . . . . . Garrison Access Hacks . | . . . . . Unauthorized Hacks . | . . . . . Terminals . | . . . . . Fabricators . | . . . . . Repair Stations . | . . . . . Recycling Units . | . . . . . Scanalyzers . | . . . . . Garrison Access . | . . . . . Data Cores Recovered . | . . . . . Used . | . . . . . Hacking Detections 3 | . 3 . . . Full Trace Events 1 | . 1 . . . Feedback Events 1 | . 1 . . . Corruption 1 | . 1 . . . Feedback Blocked . | . . . . . Robot Schematics Acquired . | . . . . . Robots Built . | . . . . . Authchips . | . . . . . Time . | . . . . . Total Robot Build Rating . | . . . . . Part Schematics Acquired . | . . . . . Parts Built . | . . . . . Authchips . | . . . . . Time . | . . . . . Total Part Build Rating . | . . . . . Parts Repaired . | . . . . . Time . | . . . . . Parts Recycled . | . . . . . Recycled Matter . | . . . . . Retrieved Matter . | . . . . . Retrieved Components . | . . . . . Parts Scanalyzed . | . . . . . Part Schematics Acquired . | . . . . . Parts Damaged . | . . . . . Bothacking | -11 -10 -10 -10 -9 ------------ Run | Yrd Mat Min Exi Min Used RIF Installer . | . . . . . Robots Hacked . | . . . . . Non-combat . | . . . . . Combat . | . . . . . Robot Hacks Applied . | . . . . . Relay Couplers Released . | . . . . . Fabnet Peak Effective % . | . . . . . Robots Rewired . | . . . . . Allies Hacked . | . . . . . Hacks Repelled . | . . . . . Allies | -11 -10 -10 -10 -9 -------- Run | Yrd Mat Min Exi Min Total Allies . | . . . . . Largest Group . | . . . . . Highest-Rated Group . | . . . . . Highest-Rated Ally . | . . . . . Total Orders . | . . . . . Ally Attacks . | . . . . . Total Damage . | . . . . . Kills . | . . . . . Allies Corrupted . | . . . . . Allies Melted . | . . . . . Intel | -11 -10 -10 -10 -9 ------- Run | Yrd Mat Min Exi Min Robot Analysis Total . | . . . . . Derelict Logs Recovered 1 | . . 1 . . Drone Launches . | . . . . . Drone Recoveries . | . . . . . Exploration | -11 -10 -10 -10 -9 ------------- Run | Yrd Mat Min Exi Min Turns Passed 4260 | 90 1476 366 2237 91 Spaces Moved 1670 | 48 763 218 628 13 Core 304 | 1 . . 290 13 Treads 1366 | 47 763 218 338 . Legs . | . . . . . Wheels . | . . . . . Hover . | . . . . . Flight . | . . . . . Fastest Speed 50 | 50 160 160 160 550 Average Speed 230 | 157 160 160 340 550 Slowest Speed 550 | 160 160 160 550 550 Overloaded Moves . | . . . . . Propulsion Burnouts . | . . . . . Robots Hopped . | . . . . . Cave-ins Triggered . | . . . . . Exploration Rate (%) 46 | 4 86 51 85 7 Regions Visited 4 Branch Regions 3 Pre-discovered Areas . | . . . . . Known Exits Taken . | . . . . . Unknown Exits Taken 4 | 1 1 1 1 . Scrap Searched . | . . . . . Spaces Dug 1 | . . . 1 . Terrain Destroyed 109 | . 26 8 37 38 Melee 1 | . . . 1 . Projectile 2 | . 1 . . 1 AOE 106 | . 25 8 36 37 Terrain Rammed . | . . . . . Walls Destroyed . | . . . . . Machines Disabled . | . . . . . Actions | -11 -10 -10 -10 -9 --------- Run | Yrd Mat Min Exi Min Total 1877 | 60 908 225 663 21 Wait 59 | 2 57 . . . Move 1666 | 47 762 217 627 13 Hop . | . . . . . Pick Up 18 | 5 13 . . . Fast Attach 7 | 5 2 . . . Attach 6 | 1 4 1 . . Detach 1 | . 1 . . . Swap 7 | . 2 2 1 2 Drop 7 | . 7 . . . Fire 66 | . 55 5 1 5 Melee 35 | . . . 34 1 Ram . | . . . . . Kick . | . . . . . Crush 5 | . 5 . . . Escape Stasis . | . . . . . Rewire . | . . . . . Trap . | . . . . . Miscellaneous . | . . . . . Route ------- -11/Scrapyard -10/Materials (discovered 3 exits: [*Mat x2] / [*Min]) -10/Mines -10/Exiles -9/Mines History --------- Turn | Location | Event 16 | -11/Scrapyard | Discovered new exit (range 14) 91 | -11/Scrapyard | Entered Materials 150 | -10/Materials | Core integrity fell below 50% 207 | -10/Materials | Discovered new exit (range 6) 301 | -10/Materials | Build established: Mutant 569 | -10/Materials | Discovered new exit (range 12) 943 | -10/Materials | Discovered new exit (range 5) 1477 | -10/Materials | Core integrity fell below 20% 1567 | -10/Materials | Entered Mines 1611 | -10/Mines | Learned Materials garrison access intel 1926 | -10/Mines | Deemed a non-threat by the Exiles lab entrance 1926 | -10/Mines | Discovered new exit (range 5) 1933 | -10/Mines | Entered Exiles 1933 | -10/Exiles | Found Exiles lab abandoned 4088 | -10/Exiles | Discovered new exit (range 15) 4170 | -10/Exiles | Entered Mines 4261 | -9/Mines | Destroyed by G-34 Mercenary with Small Laser Last Messages --------------- System corrupted: Matter fused (-10). Connecting with HEX's Terminal... >>Record! "HEX-BYE" To anyone looking for us: Don't. System corrupted: Component data lost. DDO O UE%MJL RJ8V:1QN7 EXIT=FOUND LOCATION=UNKNOWN GOAL=ESCAPE System corrupted: Heat flow error (+215). Sneak attack on U-05 Engineer. Destroyed Welding Torch. C-30 ARC bursts open, deploying its payload. G-47 Trooper unfolds itself. G-34 Mercenary unfolds itself. G-34 Mercenary destroyed. The unstable cave ceiling collapses. Aluminum Leg crushed. G-47 Trooper destroyed. G-34 Mercenary destroyed. Map ----- +----------------------------------------------------+ | ?????????????????????????????????????????????????? | | ?????????????????????????????????????????????????? | | ?????????????????????????????????????????????????? | | ?????????????????????????????????????????????????? | | ?????????????????????????????????????????????????? | | ?????????????????????????????????????????????????? | | ?????????????????????????????????????????????????? | | ?????????????????????????????????????????????????? | | ?????????????????????????????????????????????????? | | ?????????????????????????????????????????????????? | | ?????????????????????????????????????????????????? | | ?????????????????????????????????????????????????? | | ?????????????????????????????????????????????????? | | ?????????????????????????????????????????????????? | | ???????????????????????????????######????????????? | | ??????????????????????????????## ##???????????? | | ?????????????????????????????## ##??????????? | | ?????????????????????????????# """ #??????????? | | ?????????????????????????????# """ #??????????? | | ?????????????????????????????# """ ##?????????? | | ??????????????????????????????# #### #????? | | ???????????????????????????????# #????? | | ???????????????????????????????# #######????? | | ????????????????????# ????##???# ##??????????? | | ?????????????????#### u ##;# #????????????? | | ????????????????# u @ g %* !% #???????????? | | ????????????????# ### !% #????????????? | | ????????????????## $ #??????? ###????????????? | | ?????????????????# ####?????????????????????????? | | ?????????????????#???????????????????????????????? | | ?????????????????????????????????????????????????? | | ?????????????????????????????????????????????????? | | ?????????????????????????????????????????????????? | | ?????????????????????????????????????????????????? | | ?????????????????????????????????????????????????? | | ?????????????????????????????????????????????????? | | ?????????????????????????????????????????????????? | | ?????????????????????????????????????????????????? | | ?????????????????????????????????????????????????? | | ?????????????????????????????????????????????????? | | ?????????????????????????????????????????????????? | | ?????????????????????????????????????????????????? | | ?????????????????????????????????????????????????? | | ?????????????????????????????????????????????????? | | ?????????????????????????????????????????????????? | | ?????????????????????????????????????????????????? | | ?????????????????????????????????????????????????? | | ?????????????????????????????????????????????????? | | ?????????????????????????????????????????????????? | | ?????????????????????????????????????????????????? | +----------------------------------------------------+ Best States ------------- Heat Dissipation 25 Energy Generation 10 Energy Capacity 250 Matter Stores 300 Matter Capacity 300 Sight Range 16 Terrain Scan Density 10 Core Shielding 20 Evasion (%) 40 Recoil Reduction 2 Item Schematics ----------------- None Robot Schematics ------------------ None Fabricated ------------ Nothing Alien Tech Used ----------------- None Achievements -------------- None Challenges ------------ None Game ------ Seed TacticalGyrokineticMatrix Manual? 0 Play Time 00:14:59 Cumulative 24.2 hours Start 2024.05.08 @ 23:20:30 End 2024.05.08 @ 23:34:56 Sessions 1 Manual Loads 0 Difficulty Rogue Special Mode None Game No. 43 Rogue 43 Adventurer 0 Explorer 0 Win Type - Total 0 Types 0/0/0/0/0/0/0/0/0 Lore% 26 Gallery% 27 Achievement% 24 Wizard Run 0 Options --------- Layout 1 ASCII 0 Keyboard 0 Movement Numpad Keybinds 0 Fullscreen 2 Font 32/SmallcapsGlow Map View 50x35 Zoom Use 0% Tactical HUD 0 Map Filters NONE Filters NONE Steam 1 RUN: 81632c38-df5e-4d08-9c5c-a67b9e54dac9